[Event "GRENKE Chess Classic-TB 2024"]
[Site "Karlsruhe"]
[Date "2024.04.01"]
[Round "2.2"]
[White "Rapport, Richard"]
[Black "Carlsen, Magnus"]
[Result "1/2-1/2"]
[ECO "C50"]
[WhiteElo "2720"]
[BlackElo "2830"]
[Annotator "TA"]
[PlyCount "157"]
[EventDate "2024.03.26"]
[EventType "match"]
[EventCountry "GER"]
[SourceTitle "playchess.com"]
[Source "ChessBase"]
[SourceQuality "1"]
[TimeControl "2700+10"]

{[%evp 12,157,12,7,11,0,33,0,22,33,39,10,32,25,28,29,19,28,25,22,54,67,48,52,54,56,63,61,61,28,220,210,226,218,247,235,246,252,239,262,258,230,228,243,231,105,107,112,100,101,106,114,110,60,76,78,67,45,67,65,96,100,231,240,239,118,113,117,289,283,279,243,250,201,270,263,266,268,269,271,283,264,347,334,328,351,979,829,438,297,293,279,279,277,260,260,239,210,198,191,228,114,197,191,186,155,127,149,148,137,328,85,104,57,79,64,196,183,148,56,51,63,237,0,0,3,29976,29977,29977,29978,29976,29972,12745,0,29964,0,0,0,639,0,0,0,0,0,0,0,0,0]} 1. e4 {[%emt 0:00:06]} e5 {[%emt 0:00:03]} 2. Nf3 {[%emt 0:00:13]} Nc6 {[%emt 0:00:05]} 3. Bc4 {[%emt 0:00:04]} Nf6 {[%emt 0:00:11]} 4. d3 {[%emt 0:00:02]} Bc5 {[%emt 0:02:34]} 5. Nc3 {[%emt 0:00:34]} h6 {[%emt 0:00:46]} 6. O-O {[%emt 0:01:31]} d6 {[%emt 0:02:08]} 7. Na4 {[%emt 0:01:34]} Bb6 {[%emt 0:00:03]} 8. a3 {[%emt 0:00:34]} Bg4 {[%emt 0:00:23]} 9. c3 {[%emt 0:00:40] Dodges Nd4} Qc8 {[%emt 0:02:29]} 10. Nxb6 {[%emt 0:00:39]} axb6 {[%emt 0:00:01]} 11. Bb3 {[%emt 0:00:07]} Ne7 {[%emt 0:00:47]} 12. h3 {[%emt 0:02:52]} Be6 {[%emt 0:00:12]} 13. Ba4+ {[%emt 0:02:27]} Bd7 {[%emt 0:04:05]} 14. Bc2 {[%emt 0:00:32]} Ng6 {[%emt 0:05:40][%cal Od7h3]} 15. Nh2 {[%emt 0:01:57]} O-O (15... Nh4 {with more complications.} 16. f4 Nxg2 17. Kxg2 Bxh3+ 18. Kf2 Bxf1 19. Qxf1 exf4 20. Bxf4 Qe6) 16. f4 {[%emt 0:01:32]} exf4 {[%emt 0:00:09]} 17. Bxf4 {[%emt 0:00:36]} Nxf4 {[%emt 0:00:03]} 18. Rxf4 {[%emt 0:00:02]} Qd8 {[%emt 0:01:00]} 19. d4 {[%emt 0:00:47]} Ra5 {[%emt 0:02:15]} 20. Qd3 {[%emt 0:04:51]} d5 $2 {[%emt 0:09:59]} (20... Re8 $1 $11 {and Black has nothing to worry.}) 21. exd5 $1 $18 {[%emt 0:01:22][%cal Of4f6] Hoping for Rxf6!} (21. e5 $6 Ne4) 21... g6 {[%emt 0:00:06]} 22. c4 {[%emt 0:00:59][%cal Bc3c4,Bc4c5][%mdl 32]} b5 {[%emt 0:00:03]} 23. Raf1 $1 {[%emt 0:03:27]} Ra6 {[%emt 0:01:05]} 24. Qf3 {[%emt 0:03:19] d6 is the strong threat.} (24. cxb5 Rd6 $16) 24... Kg7 {[%emt 0:00:32] [#]} 25. d6 $1 {[%emt 0:00:09][%mdl 512]} Rxd6 {[%emt 0:01:09]} 26. c5 {[%emt 0:00:29]} Bc6 {[%emt 0:05:26][%cal Bd7c6,Bc6e4,Be4d3,Bd3c4][%mdl 32]} 27. Qf2 {[%emt 0:02:25]} Re6 {[%emt 0:00:08]} 28. Bb3 {[%emt 0:06:14]} (28. Ng4 $18 Qe7 29. Nxf6 (29. Rxf6 Re2 $16)) 28... g5 $16 {[%emt 0:00:09]} 29. Rf5 {[%emt 0:00:38]} Be4 {[%emt 0:00:52]} 30. Bxe6 {[%emt 0:00:19]} fxe6 {[%emt 0:00:01]} 31. Re5 {[%emt 0:00:01]} Bd3 {[%emt 0:00:09]} 32. Rd1 {[%emt 0:01:16]} ({White should play} 32. Rxe6 $16 {aiming for Rfe1.} Bc4 33. Ree1) 32... Ng4 $1 $14 {[%emt 0:00:13]} 33. Nxg4 {[%emt 0:00:05]} Rxf2 {[%emt 0:00:03]} 34. Nxf2 {[%emt 0:00:02]} Bc4 {[%emt 0:01:01]} (34... Qxd4 $2 35. Ree1 $18 (35. Rxd3 $2 Qxe5 36. Rd7+ Kf8 $19) (35. Rxe6 Qc4 $18)) 35. Ng4 $36 {[%emt 0:00:44][%cal Od4d5][%mdl 2048] White fights for an advantage. White is more active.} Bb3 {[%emt 0:01:22]} 36. Rd2 {[%emt 0:01:02]} h5 {[%emt 0:00:45]} (36... Bd5 $16 {was necessary.}) 37. Nf2 $1 $18 {[%emt 0:01:55]} Bd5 {[%emt 0:00:15]} 38. Ne4 {[%emt 0:00:55]} (38. h4 $1 $18 {and the rest is easy.}) 38... Bxe4 $16 {[%emt 0:00:02]} 39. Rxe4 {[%emt 0:00:01][%mdl 4096] Endgame. KQ-KRR} g4 $2 {[%emt 0:00:08]} 40. hxg4 $18 {[%emt 0:01:07]} (40. Rxe6 gxh3 41. gxh3 Qh4 $14) 40... Qg5 {[%emt 0:00:03]} 41. Rde2 {[%emt 0:00:10] gxh5 would now be deadly.} hxg4 {[%emt 0:00:40]} 42. g3 {[%emt 0:00:01]} (42. Rxe6 g3 $14) 42... Qf5 {[%emt 0:01:38]} 43. Rf4 $1 {[%emt 0:00:23]} (43. Rxe6 Qd3 $16) 43... Qd3 {[%emt 0:00:35]} 44. Kf2 {[%emt 0:00:01]} (44. Rxe6 Qxg3+ 45. Kf1 Qxf4+ 46. Kg1 Qxd4+ 47. Kf1 g3 (47... Qxb2 $2 48. c6 $19) (47... Qxc5 $2 48. Re2 $19) 48. Kg2 Qf2+ (48... Qxc5 $2 49. Re2 $19) 49. Kh3 g2 (49... Qxc5 50. Kxg3 Qg5+ 51. Kh2 Qh4+ 52. Kg2 Qg4+ 53. Kf2 Qxe6 54. Kf3 Kg6 55. Kf4 Kf6 56. Kf3 Kf5 57. a4 bxa4 58. Kg2 Qe4+ 59. Kg3 Qe2 60. Kh3 Qf2 61. b4 Kf4 62. b5 Qg3#) (49... Qf5+ 50. Kxg3 Qxe6 51. Kf3 Qf6+ 52. Ke4 Qxb2 53. Ke3 Qc3+ 54. Kf4 Qxa3 55. Ke4 Kf6 56. Kf4 Qc3 57. c6 bxc6 58. Kg4 Qe3 59. Kh4 Kf5 60. Kh5 Qh3#) (49... Qxc5 $2 50. Re1 $19) (49... Qf5+ 50. Kxg3 Qxe6 51. Kf3 Qf6+ 52. Ke4 Qxb2 53. Kf3 Qxa3+ 54. Ke2 b4 55. Ke1 b3 56. Kd2 b2 57. Kc2 Qb4 58. Kd1 b1=Q+ 59. Ke2 Q4e4+ 60. Kf2 Qbe1#)) (44. Rxg4+ $6 Kf7 45. Kf2 Qc4 46. Rf4+ Ke7 $16) 44... Qb3 {[%emt 0:01:58]} 45. Rxg4+ {[%emt 0:00:07]} Kf7 {[%emt 0:00:02]} 46. Rf4+ {[%emt 0:00:02]} Kg7 {[%emt 0:00:43]} 47. Rfe4 {[%emt 0:00:02]} Qd3 {[%emt 0:00:08]} 48. Kg2 {[%emt 0:00:22]} (48. Rxe6 Qxd4+ 49. Kf3 Qxc5 $16) 48... c6 $2 {[%emt 0:00:09]} (48... b4 49. axb4 (49. Rxe6 bxa3 50. bxa3 Qxd4 $16) 49... Qd1) 49. Rg4+ {[%emt 0:00:16]} Kf7 {[%emt 0:00:17]} 50. Rf2+ {[%emt 0:00:19]} Ke7 {[%emt 0:00:01]} 51. Rg7+ {[%emt 0:00:50]} Ke8 {[%emt 0:00:01]} 52. Rgf7 {[%emt 0:00:16] Rf8+ would kill now.} (52. Rxb7 Qxd4 53. Rb8+ Ke7 $11) 52... e5 {[%emt 0:00:01]} 53. dxe5 {[%emt 0:00:08]} Qd5+ {[%emt 0:00:07]} 54. Kh2 {[%emt 0:00:04]} Qxc5 {[%emt 0:00:01]} 55. R7f5 {[%emt 0:00:40]} Qe3 {[%emt 0:00:15]} 56. Kh3 {[%emt 0:00:23]} (56. g4 $1 $18) 56... Ke7 {[%emt 0:00:16]} (56... c5 $16) 57. Rf7+ {[%emt 0:00:11]} Ke8 {[%emt 0:00:00]} 58. Rf8+ $1 {[%emt 0:00:29]} Ke7 {[%emt 0:00:02]} 59. R2f7+ {[%emt 0:00:07]} Ke6 {[%emt 0:00:00]} 60. Rf6+ {[%emt 0:00:01]} (60. Rxb7 $2 {too greedy.} Qh6+ (60... Kxe5 61. Re8+ Kd5 62. Rd7+ Kc4 63. Rxe3 b4 64. axb4 Kb5 65. Rc3) 61. Kg2 Qxf8 $19) 60... Kd5 $2 {[%emt 0:00:43]} (60... Ke7 $16) 61. Rd8+ $2 {[%emt 0:00:03]} (61. e6 $18) 61... Kc4 {[%emt 0:00:14]} 62. e6 {[%emt 0:00:12]} (62. b4 $16) 62... Qe5 {[%emt 0:00:02]} 63. Rf4+ {[%emt 0:01:51]} Kb3 {[%emt 0:00:20]} ({Better is} 63... Kc5 $14) 64. Rd3+ {[%emt 0:00:31]} Kc2 {[%emt 0:00:09]} 65. Rdf3 {[%emt 0:00:10]} (65. Rff3 $16 {Threatens to win with Rde3.} Qxe6+ 66. g4) 65... Qxe6+ $14 {[%emt 0:00:05]} 66. g4 {[%emt 0:00:06]} Kxb2 $2 {[%emt 0:00:01] [#]} (66... c5 $1 $14) 67. Kg2 $2 {[%emt 0:00:12]} (67. Rf5 $1 $18) 67... c5 $11 {[%emt 0:00:15]} 68. Rg3 {[%emt 0:00:09] Strongly threatening Rf2+.} (68. Rh3 $5 Qd5+ $8 69. Kg1 Qd1+ 70. Kg2 Qd5+ (70... c4 $2 71. Rf2+ Kc1 72. Rf1 $18) 71. Kg1 Qd1+ 72. Kg2 Qd5+ $11 (72... c4 $2 73. Rf2+ Kc1 74. Rf1 $18)) 68... Qd5+ $2 {[%emt 0:00:01][%mdl 8192]} (68... b4 $11 69. axb4 c4) 69. Kh2 {[%emt 0:00:07]} Qe5 {[%emt 0:01:10]} 70. Rf2+ {[%emt 0:00:02]} Kb1 {[%emt 0:00:04]} 71. Rf1+ {[%emt 0:00:24]} Kc2 {[%emt 0:00:13]} 72. Rf2+ $2 {[%emt 0:00:08]} ({White has to play} 72. g5 $18 {White threatens g6 and mate.} c4 73. g6 Qh8+ 74. Kg1) 72... Kd1 $2 {[%emt 0:00:06][%mdl 8192]} (72... Kb1 $11) 73. Kh3 $2 {[%emt 0:00:10]} (73. g5 {mates} Ke1 74. Kg2 Qd4 75. Rf1+ Kd2 76. g6 c4 77. g7 Qd5+ 78. Rff3) 73... Ke1 {[%emt 0:00:11]} 74. Rf5 {[%emt 0:00:12]} Qe4 $2 {[%emt 0:00:14][%mdl 8192] [#]} (74... Qd4 $11) 75. Rg1+ $2 {[%emt 0:00:02]} (75. Rff3 $1 $18 {[%cal Rf3e3] And now Re3+ would win.} Qg6 76. g5) 75... Ke2 {[%emt 0:00:02] The position is equal.} 76. Rg2+ {[%emt 0:00:02]} Ke1 {[%emt 0:00:20]} 77. Rg1+ {[%emt 0:00:19]} Ke2 {[%emt 0:00:04]} 78. Rg2+ {[%emt 0:00:16]} Ke1 {[%emt 0:00:02]} 79. Rg1+ {[%emt 0:00:10] Weighted Error Value: White=0.18 (very precise) /Black=0.26 (precise) .  Loses game:     	---       	Black=6      Missed win:     	White=3     	---        Mistake:       	White=6     	Black=4      Inaccurate:     	White=3     	Black=4      OK:         	White=31    	Black=27     Best:        	White=2     	Black=8      Strong:       	White=3     	Black=1      Brilliant:      	White=1     	---} 1/2-1/2

[Event "GRENKE Chess Classic-TB 2024"]
[Site "Karlsruhe"]
[Date "2024.04.01"]
[Round "2.3"]
[White "Vachier-Lagrave, Maxime"]
[Black "Keymer, Vincent"]
[Result "1/2-1/2"]
[ECO "C50"]
[WhiteElo "2728"]
[BlackElo "2738"]
[Annotator "TA"]
[PlyCount "88"]
[EventDate "2024.03.26"]
[EventType "match"]
[EventCountry "GER"]
[SourceTitle "playchess.com"]
[Source "ChessBase"]
[SourceQuality "1"]
[TimeControl "2700+10"]

{[%evp 16,88,0,0,0,0,26,24,31,0,17,8,27,-25,0,-1,0,0,-5,-15,-13,-23,-16,-31,-11,-91,-82,-81,-88,-87,-91,-85,-83,-86,-90,-91,-81,-86,-85,-86,-83,-89,-91,-111,-98,-102,-102,-105,-89,-125,-132,-120,-62,-116,-117,-95,-106,-114,-92,-97,-101,-366,-111,-234,-68,-57,0,0,0,0,0,0,0,0,0]} 1. e4 {[%emt 0:35:17]} e5 {[%emt 0:35:17]} 2. Nf3 {[%emt 0:00:10]} Nc6 {[%emt 0:00:09]} 3. Bc4 {[%emt 0:00:09]} Nf6 {[%emt 0:00:09]} 4. d3 {[%emt 0:00:09]} Bc5 {[%emt 0:00:09]} 5. Nc3 {[%emt 0:00:09]} d6 {[%emt 0:00:19]} 6. Be3 {[%emt 0:01:27]} Bb6 {[%emt 0:00:50]} 7. Nd5 {[%emt 0:00:28] C50: Hungarian Defence and Giuoco Pianissimo.} h6 {[%emt 0:00:35]} 8. Nxb6 {[%emt 0:00:36]} axb6 {[%emt 0:00:10]} 9. a3 {[%emt 0:00:17]} O-O {[%emt 0:00:14]} 10. O-O {[%emt 0:00:19]} Be6 {[%emt 0:00:15]} 11. Bxe6 {[%emt 0:00:20]} fxe6 {[%emt 0:00:09]} 12. c4 $146 {[%emt 0:00:09]} ({Predecessor:} 12. h3 Qe8 13. Nh2 Qg6 14. f4 Nh5 15. Qd2 exf4 16. Bxf4 Nxf4 17. Rxf4 Rxf4 18. Qxf4 Rf8 19. Qe3 Qf6 20. c3 Qf4 21. Re1 Ne5 22. Qxf4 Rxf4 {½-½ Bandic,A (2218)-Pisarevic,G (2165) BIH-chT 16th 2017 (3.5)}) 12... d5 {[%emt 0:00:39]} 13. cxd5 {[%emt 0:01:06]} exd5 {[%emt 0:00:10]} 14. Re1 {[%emt 0:00:15]} ({White should play} 14. Qc2) 14... Qd6 {[%emt 0:00:47]} 15. exd5 {[%emt 0:02:19]} Nxd5 {[%emt 0:00:17]} 16. Rc1 {[%emt 0:00:09]} Rad8 {[%emt 0:00:35]} 17. h3 {[%emt 0:00:33]} Qg6 {[%emt 0:00:29]} 18. Nh4 {[%emt 0:00:29]} (18. Qe2 {simplifies} Nxe3 19. Qxe3 Qxd3 20. Nxe5 Qxe3 21. Rxe3 Nxe5 22. Rxe5 Rd2 23. f3) 18... Qf7 {[%emt 0:00:52]} 19. Qg4 {[%emt 0:00:17]} Rd6 {[%emt 0:01:08]} 20. Kh2 {[%emt 0:00:59]} (20. Nf3 $11) 20... Nf4 $1 $17 {[%emt 0:01:22]} 21. Bxf4 {[%emt 0:00:09]} Qxf4+ {[%emt 0:00:09]} 22. Qxf4 {[%emt 0:00:09]} Rxf4 {[%emt 0:00:09]} 23. Nf3 {[%emt 0:00:15]} Rxd3 {[%emt 0:00:09]} 24. Re3 {[%emt 0:00:46]} Rd5 {[%emt 0:01:00]} 25. g3 {[%emt 0:00:16]} Rf7 {[%emt 0:01:08]} 26. Kg2 {[%emt 0:00:11]} Re7 {[%emt 0:00:11]} 27. Rce1 {[%emt 0:00:31]} Kf7 {[%emt 0:00:11]} 28. h4 {[%emt 0:00:25]} Kf6 {[%emt 0:00:18]} 29. Nh2 {[%emt 0:00:16]} Rd2 {[%emt 0:00:25]} 30. b4 {[%emt 0:00:09]} b5 {[%emt 0:00:30]} 31. Kh3 {[%emt 0:00:42]} h5 {[%emt 0:00:27]} (31... Rxf2 $2 {is the wrong capture.} 32. Ng4+ Ke6 33. Nxf2 $18) 32. g4 {[%emt 0:00:10]} Rxf2 {[%emt 0:00:24]} 33. gxh5 {[%emt 0:00:09] [#]} Rf4 {[%emt 0:00:15]} (33... Rf5 $1 $17 34. Ng4+ Ke6) 34. Ng4+ {[%emt 0:00:33]} (34. Rg3 $15) 34... Kf5 $17 {[%emt 0:00:17]} 35. Rg3 {[%emt 0:00:09] [#]} Ke6 $1 {[%emt 0:00:25]} 36. h6 {[%emt 0:00:21]} gxh6 {[%emt 0:00:17]} 37. Nxh6 {[%emt 0:00:09]} Nd4 {[%emt 0:00:14]} 38. Ng4 $2 {[%emt 0:00:13][%mdl 8192]} (38. Rg6+ $17 {was called for.} Kd5 39. Ng4) 38... Kd6 $2 {[%emt 0:00:16]} (38... Nf3 $19 {is more deadly.} 39. Re3 Ref7) 39. Rd3 {[%emt 0:00:19]} (39. h5 $17) 39... Kd5 $2 {[%emt 0:00:12]} (39... b6 $19 {Hoping for ...c5.} 40. h5 c5) 40. h5 $15 {[%emt 0:00:15]} e4 {[%emt 0:00:12]} ({Black should try} 40... b6 $15 41. h6 c6) 41. Ne3+ $11 {[%emt 0:00:11]} Ke5 {[%emt 0:00:10]} 42. Ng4+ {[%emt 0:00:09]} Kd5 {[%emt 0:00:11]} 43. Ne3+ {[%emt 0:00:10]} Ke5 {[%emt 0:00:09]} 44. Ng4+ {[%emt 0:00:09]} Kd5 {[%emt 0:00:11]} 1/2-1/2

[Event "GRENKE Chess Classic-TB 2024"]
[Site "Karlsruhe"]
[Date "2024.04.01"]
[Round "2.3"]
[White "Fridman, Daniel"]
[Black "Ding, Liren"]
[Result "1/2-1/2"]
[ECO "A06"]
[WhiteElo "2590"]
[BlackElo "2762"]
[Annotator "TA"]
[PlyCount "55"]
[EventDate "2024.03.26"]
[EventType "match"]
[EventCountry "GER"]
[SourceTitle "playchess.com"]
[Source "ChessBase"]
[SourceQuality "1"]
[TimeControl "2700+10"]

{[%evp 10,55,15,11,4,2,2,5,13,10,15,11,14,19,0,11,14,7,20,9,1,4,0,0,2,18,0,7,2,0,0,0,0,0,-3,-9,-1,-5,-2,-50,0,0,0,-8,0,0,0,-23]} 1. Nf3 {[%emt 0:00:03]} d5 {[%emt 0:00:01]} 2. g3 {[%emt 0:00:01]} Nf6 {[%emt 0:00:02]} 3. Bg2 {[%emt 0:00:01]} c5 {[%emt 0:00:01]} 4. O-O {[%emt 0:00:02]} e6 {[%emt 0:00:01]} 5. c4 {[%emt 0:00:02]} d4 {[%emt 0:00:01]} 6. e3 {[%emt 0:00:01]} Nc6 {[%emt 0:00:01]} 7. d3 {[%emt 0:00:01]} Bd6 {[%emt 0:00:01]} 8. exd4 {[%emt 0:00:02]} cxd4 {[%emt 0:00:01]} 9. Bg5 {[%emt 0:00:01]} h6 {[%emt 0:00:01]} 10. Bxf6 {[%emt 0:00:02]} Qxf6 {[%emt 0:00:01]} 11. Nbd2 {[%emt 0:00:02][%cal Bb1d2,Bd2e4,Be4c5][%mdl 32]} Qe7 {[%emt 0:00:01]} 12. a3 {[%emt 0:00:01]} a5 {[%emt 0:00:01]} 13. Ne4 {[%emt 0:00:02]} Bc7 {[%emt 0:00:01] [#]} 14. b4 $1 {[%emt 0:00:24]} axb4 {[%emt 0:05:07]} 15. axb4 {[%emt 0:00:03]} Rxa1 {[%emt 0:00:01]} 16. Qxa1 {[%emt 0:00:01] b5 would now be deadly.} f5 {[%emt 0:01:15]} 17. Nc5 {[%emt 0:00:27]} Nxb4 {[%emt 0:04:34]} 18. Qa4+ {[%emt 0:06:06]} Kf7 $1 {[%emt 0:00:01]} ({Of course not} 18... Nc6 $6 19. Nxb7 Bd7 (19... Bxb7 $2 20. Rb1 $18) 20. Qa8+ Nb8 21. Nxd4 $18) 19. Qxb4 {[%emt 0:00:05][%cal Ob4b5] [#] Threatens to win with Qb5!} Bd6 {[%emt 0:00:11]} ({Much weaker is} 19... b6 20. Ne5+ Bxe5 21. Qxb6 $14) 20. Qb5 {[%emt 0:02:06]} Bxc5 {[%emt 0:00:03]} 21. Ne5+ {[%emt 0:00:01]} Kf6 {[%emt 0:00:04]} 22. f4 $132 {[%emt 0:00:03][%cal Og2b7][%mdl 2048] White is not holding back} Rd8 {[%emt 0:02:51]} 23. Rb1 {[%emt 0:06:24][%cal Rg2b7]} Bd6 {[%emt 0:00:30]} 24. h4 {[%emt 0:03:50]} (24. Bxb7 Bxb7 25. Qxb7 Qxb7 26. Rxb7 Bxe5 27. fxe5+ Kxe5 28. Rxg7 Ra8 $17) (24. g4 $11) 24... Qc7 {[%emt 0:00:08]} ({Black should play} 24... g5 $1 $15) 25. Nf3 $11 {[%emt 0:01:53] The position is equal.} Bc5 {[%emt 0:00:18]} 26. Ne5 {[%emt 0:01:13][%cal Rg2b7]} Bd6 {[%emt 0:00:01]} 27. Nf3 {[%emt 0:00:15]} Bc5 {[%emt 0:00:02]} 28. Ne5 {[%emt 0:00:09] A rather calm draw.   Weighted Error Value: White=0.06 (flawless) /Black=0.05 (flawless) .  Mistake:       	White=1     	Black=1      OK:         	White=10    	Black=12     Best:        	---       	Black=2      Strong:       	---       	Black=1} 1/2-1/2

[Event "GRENKE Chess Classic-TB 2024"]
[Site "Karlsruhe"]
[Date "2024.04.01"]
[Round "2.4"]
[White "Keymer, Vincent"]
[Black "Vachier-Lagrave, Maxime"]
[Result "0-1"]
[ECO "A48"]
[WhiteElo "2738"]
[BlackElo "2728"]
[Annotator "TA"]
[PlyCount "60"]
[EventDate "2024.03.26"]
[EventType "match"]
[EventCountry "GER"]
[SourceTitle "playchess.com"]
[Source "ChessBase"]
[SourceQuality "1"]
[TimeControl "2700+10"]

{[%evp 9,60,21,26,22,25,18,25,0,0,0,0,-12,2,-20,-10,-10,-7,-13,0,-10,0,0,0,-8,25,34,33,0,78,36,66,-83,-97,-108,-116,-117,-116,-107,-126,-255,-255,-708,-712,-712,-703,-839,-775,-774,-771,-796,-779,-2525,-2724]} 1. d4 {[%emt 0:35:18]} Nf6 {[%emt 0:35:17]} 2. Nf3 {[%emt 0:00:13]} g6 {[%emt 0:00:09]} 3. Nbd2 {[%emt 0:00:10]} d5 {[%emt 0:00:11]} 4. e3 {[%emt 0:00:12]} a5 {[%emt 0:00:29]} 5. b3 {[%emt 0:00:36]} Bg7 {[%emt 0:00:11]} 6. Be2 O-O {[%emt 0:00:28]} 7. O-O {[%emt 0:00:37]} c5 {[%emt 0:00:48]} 8. a4 {[%emt 0:00:50] White has an edge.} Nc6 {[%emt 0:00:22]} 9. Bb2 {[%emt 0:00:36]} Ne4 {[%emt 0:00:09]} 10. h3 {[%emt 0:01:23]} Re8 {[%emt 0:00:52]} 11. Bb5 {[%emt 0:00:23]} Nd6 {[%emt 0:00:21]} 12. c3 {[%emt 0:01:04]} cxd4 {[%emt 0:00:18]} 13. exd4 {[%emt 0:00:11]} Bd7 {[%emt 0:00:31]} 14. Re1 {[%emt 0:00:16]} Rc8 {[%emt 0:00:53]} 15. Rc1 {[%emt 0:00:36]} Qb6 {[%emt 0:00:40]} 16. Bxc6 {[%emt 0:01:08]} Qxc6 {[%emt 0:00:35]} 17. Ne5 {[%emt 0:00:30]} Qc7 {[%emt 0:00:09]} 18. Ba3 {[%emt 0:00:27]} Bf5 {[%emt 0:00:34]} (18... f6 $11 19. Nxd7 Qxd7) 19. g4 {[%emt 0:00:17]} Be6 {[%emt 0:00:09]} 20. Qf3 {[%emt 0:00:16]} (20. c4 $1 $14 {stays ahead.} Qb8 (20... dxc4 21. bxc4 b6 22. d5 $16) 21. Qf3 dxc4 22. Ndxc4 Nxc4 23. bxc4) 20... Bh6 $17 {[%emt 0:00:14]} 21. Rc2 {[%emt 0:01:49] [#]} Ne4 $1 {[%emt 0:00:10][%mdl 512]} 22. Nxe4 {[%emt 0:01:06]} (22. Nf1 Qb6) 22... dxe4 {[%emt 0:00:09]} 23. Rxe4 {[%emt 0:00:09] c4 is the strong threat.} Bxb3 {[%emt 0:00:47]} 24. g5 {[%emt 0:00:49] White does not recover from this.} Bxg5 $19 {[%emt 0:01:01]} (24... Bxc2 25. Qxf7+ (25. gxh6 $2 {too greedy.} f6 $19) 25... Kh8 26. Nxg6+ (26. gxh6 Rg8 27. Bxe7 Qxe7 28. Qxe7 Rcf8 29. Nf7+ Rxf7 30. Qxf7 Bxe4 31. Qf6+ Rg7 32. Qxg7#) 26... hxg6 27. Rh4 (27. Rxe7 $2 {loses.} Rxe7 28. Bxe7 Bg7 $19) (27. Rxe7 $2 Rxe7 28. Qf6+ Bg7 $19)) 25. c4 $2 {[%emt 0:00:17]} (25. Rg4 Bf6 (25... Bxc2 26. Qxf7+ Kh8 27. Rxg5 $17) 26. Rc1) 25... Bxc2 {[%emt 0:00:09] This pair of bishops is nice. Black is clearly winning.} 26. Qxf7+ {[%emt 0:00:09]} Kh8 {[%emt 0:00:09]} 27. Rg4 {[%emt 0:00:14]} Rf8 {[%emt 0:00:15]} 28. Qd5 {[%emt 0:00:11]} Bf6 {[%emt 0:00:14]} 29. Bc1 {[%emt 0:00:10]} Bxe5 {[%emt 0:00:23]} 30. dxe5 {[%emt 0:00:09]} Rcd8 {[%emt 0:00:09] Weighted Error Value: White=0.71/Black=0.08 (flawless) .  Mistake:       	White=3     	Black=1      Inaccurate:     	White=2     	Black=1      OK:         	White=2     	Black=9      Best:        	---       	Black=3      Brilliant:      	---       	Black=1} 0-1